[Event "Titled Tuesday Blitz March 21 Early 2023"]
[White "Kaufman, Raymond"]
[Black "Hambleton, Aman"]
[WhiteFideId "2015056"]
[BlackFideId "2606577"]
[WhiteElo "2321"]
[BlackElo "2511"]
[Result "0-1"]
[Round "09"]
[TimeControl "180+2"]
[Date "2023.03.21"]
[WhiteClock "0:00:10"]
[BlackClock "0:00:07"]

1. c4 {[%clk 0:03:00]}  c5 {[%clk 0:02:59]} 2. Nc3 {[%clk 0:02:59]}  b6 {[%clk 0:02:59]} 3. Nf3 {[%clk 0:02:57]}  Bb7 {[%clk 0:03:00]} 4. d4 {[%clk 0:02:57]}  cxd4 {[%clk 0:03:00]} 5. Nxd4 {[%clk 0:02:57]}  e6 {[%clk 0:03:01]} 6. f3 {[%clk 0:02:57]}  Nf6 {[%clk 0:03:01]} 7. e4 {[%clk 0:02:57]}  d6 {[%clk 0:03:02]} 8. Be3 {[%clk 0:02:56]}  a6 {[%clk 0:03:03]} 9. Be2 {[%clk 0:02:53]}  Nbd7 {[%clk 0:03:03]} 10. O-O {[%clk 0:02:47]}  Be7 {[%clk 0:03:04]} 11. a4 {[%clk 0:02:48]}  Rb8 {[%clk 0:02:34]} 12. a5 {[%clk 0:02:35]}  bxa5 {[%clk 0:02:35]} 13. Nb3 {[%clk 0:02:34]}  Ba8 {[%clk 0:02:35]} 14. Qc2 {[%clk 0:02:15]}  O-O {[%clk 0:02:35]} 15. Nxa5 {[%clk 0:02:14]}  Qc7 {[%clk 0:02:35]} 16. Rfc1 {[%clk 0:02:03]}  Rfc8 {[%clk 0:02:34]} 17. Kh1 {[%clk 0:02:02]}  h5 {[%clk 0:02:33]} 18. Bg1 {[%clk 0:01:56]}  h4 {[%clk 0:02:33]} 19. Bf1 {[%clk 0:01:37]}  Ne5 {[%clk 0:02:18]} 20. Ne2 {[%clk 0:01:25]}  h3 {[%clk 0:02:05]} 21. Nd4 {[%clk 0:01:20]}  hxg2+ {[%clk 0:01:56]} 22. Qxg2 {[%clk 0:01:17]}  Nh5 {[%clk 0:01:41]} 23. Be3 {[%clk 0:01:15]}  Ng6 {[%clk 0:01:37]} 24. Qg4 {[%clk 0:01:03]}  Nf6 {[%clk 0:01:33]} 25. Qh3 {[%clk 0:01:01]}  Rxb2 {[%clk 0:01:29]} 26. Nab3 {[%clk 0:00:48]}  Bb7 {[%clk 0:00:46]} 27. c5 {[%clk 0:00:44]}  dxc5 {[%clk 0:00:40]} 28. Bxa6 {[%clk 0:00:43]}  Bxa6 {[%clk 0:00:22]} 29. Rxa6 {[%clk 0:00:42]}  Qb7 {[%clk 0:00:21]} 30. Rxe6 {[%clk 0:00:28]}  cxd4 {[%clk 0:00:14]} 31. Rb6 {[%clk 0:00:14]}  Rxc1+ {[%clk 0:00:08]} 32. Bxc1 {[%clk 0:00:14]}  Qxb6 {[%clk 0:00:08]} 33. Qc8+ {[%clk 0:00:12]}  Bf8 {[%clk 0:00:08]} 34. Bxb2 {[%clk 0:00:09]}  Qxb3 {[%clk 0:00:07]} 35. Bxd4 {[%clk 0:00:10]}  Qxf3+ {[%clk 0:00:07]} 0-1


[Site "https://www.chess.com"]

[Event "Titled Tuesday Blitz March 21 Early 2023"]
[White "Ben Artzi, Ido"]
[Black "Korchmar, Vasiliy"]
[WhiteFideId "2810913"]
[BlackFideId "24131750"]
[WhiteElo "2204"]
[BlackElo "2370"]
[Result "1/2-1/2"]
[Round "09"]
[TimeControl "180+2"]
[Date "2023.03.21"]
[WhiteClock "0:00:15"]
[BlackClock "0:02:02"]

1. d4 {[%clk 0:02:47]}  d5 {[%clk 0:02:56]} 2. c4 {[%clk 0:02:47]}  c6 {[%clk 0:02:57]} 3. cxd5 {[%clk 0:02:47]}  cxd5 {[%clk 0:02:57]} 4. Bf4 {[%clk 0:02:48]}  Nf6 {[%clk 0:02:57]} 5. Nc3 {[%clk 0:02:47]}  Nc6 {[%clk 0:02:58]} 6. e3 {[%clk 0:02:48]}  a6 {[%clk 0:02:57]} 7. Be2 {[%clk 0:02:48]}  Bf5 {[%clk 0:02:56]} 8. Rc1 {[%clk 0:02:43]}  e6 {[%clk 0:02:57]} 9. Qb3 {[%clk 0:02:31]}  Na5 {[%clk 0:02:49]} 10. Qa4+ {[%clk 0:02:30]}  b5 {[%clk 0:02:43]} 11. Nxb5 {[%clk 0:02:30]}  axb5 {[%clk 0:02:44]} 12. Bxb5+ {[%clk 0:02:30]}  Nd7 {[%clk 0:02:42]} 13. Bc7 {[%clk 0:02:07]}  Qc8 {[%clk 0:02:41]} 14. Nf3 {[%clk 0:01:35]}  Nc6 {[%clk 0:02:31]} 15. Ba5 {[%clk 0:00:32]}  Bb4+ {[%clk 0:02:16]} 16. Qxb4 {[%clk 0:00:32]}  Nxb4 {[%clk 0:02:16]} 17. Rxc8+ {[%clk 0:00:32]}  Rxc8 {[%clk 0:02:17]} 18. Bxb4 {[%clk 0:00:27]}  Rc1+ {[%clk 0:02:17]} 19. Kd2 {[%clk 0:00:22]}  Rxh1 {[%clk 0:02:18]} 20. Ne5 {[%clk 0:00:23]}  f6 {[%clk 0:02:06]} 21. Bxd7+ {[%clk 0:00:22]}  Kd8 {[%clk 0:02:01]} 22. Ba5+ {[%clk 0:00:22]}  Ke7 {[%clk 0:02:02]} 23. Bb4+ {[%clk 0:00:22]}  Kd8 {[%clk 0:02:02]} 24. Ba5+ {[%clk 0:00:14]}  Ke7 {[%clk 0:02:02]} 25. Bb4+ {[%clk 0:00:15]}  Kd8 {[%clk 0:02:02]} 1/2-1/2


[Site "https://www.chess.com"]

[Event "Titled Tuesday Blitz March 21 Early 2023"]
[White "Larino Nieto, David"]
[Black "koncheto"]
[WhiteFideId "2256444"]
[WhiteElo "2506"]
[BlackElo "2509"]
[Result "0-1"]
[Round "09"]
[TimeControl "180+2"]
[Date "2023.03.21"]
[WhiteClock "0:00:12"]
[BlackClock "0:00:11"]

1. e4 {[%clk 0:02:53]}  c5 {[%clk 0:02:57]} 2. Nc3 {[%clk 0:02:51]}  Nc6 {[%clk 0:02:57]} 3. g3 {[%clk 0:02:52]}  g6 {[%clk 0:02:57]} 4. Bg2 {[%clk 0:02:53]}  Bg7 {[%clk 0:02:57]} 5. d3 {[%clk 0:02:53]}  e6 {[%clk 0:02:55]} 6. f4 {[%clk 0:02:54]}  Nge7 {[%clk 0:02:55]} 7. Be3 {[%clk 0:02:53]}  Nd4 {[%clk 0:02:55]} 8. Nce2 {[%clk 0:02:51]}  Nec6 {[%clk 0:02:52]} 9. Nc1 {[%clk 0:02:47]}  d5 {[%clk 0:02:23]} 10. c3 {[%clk 0:02:44]}  Nb5 {[%clk 0:02:21]} 11. Bxc5 {[%clk 0:02:43]}  Nxc3 {[%clk 0:02:21]} 12. Qb3 {[%clk 0:02:26]}  Qa5 {[%clk 0:01:56]} 13. Be3 {[%clk 0:01:51]}  Nxe4+ {[%clk 0:01:49]} 14. Ke2 {[%clk 0:01:39]}  Nc5 {[%clk 0:01:04]} 15. Qc2 {[%clk 0:01:39]}  b6 {[%clk 0:01:00]} 16. Nf3 {[%clk 0:01:34]}  O-O {[%clk 0:00:54]} 17. Nb3 {[%clk 0:01:24]}  Nb4 {[%clk 0:00:40]} 18. Qd2 {[%clk 0:01:18]}  Qb5 {[%clk 0:00:31]} 19. a4 {[%clk 0:01:04]}  Qxd3+ {[%clk 0:00:25]} 20. Qxd3 {[%clk 0:01:01]}  Nbxd3 {[%clk 0:00:20]} 21. Nbd4 {[%clk 0:00:55]}  Ba6 {[%clk 0:00:18]} 22. Kd1 {[%clk 0:00:31]}  Nxb2+ {[%clk 0:00:18]} 23. Kc2 {[%clk 0:00:31]}  Nc4 {[%clk 0:00:19]} 24. Bc1 {[%clk 0:00:25]}  Rfc8 {[%clk 0:00:19]} 25. Ra2 {[%clk 0:00:25]}  Ne4 {[%clk 0:00:16]} 26. Kb1 {[%clk 0:00:22]}  Nc3+ {[%clk 0:00:16]} 27. Ka1 {[%clk 0:00:22]}  Nxa2 {[%clk 0:00:16]} 28. Kxa2 {[%clk 0:00:23]}  Na5 {[%clk 0:00:11]} 29. Bb2 {[%clk 0:00:17]}  Nc6 {[%clk 0:00:07]} 30. h4 {[%clk 0:00:15]}  Nxd4 {[%clk 0:00:07]} 31. Nxd4 {[%clk 0:00:16]}  Bxd4 {[%clk 0:00:07]} 32. Bxd4 {[%clk 0:00:15]}  Rc2+ {[%clk 0:00:07]} 33. Kb3 {[%clk 0:00:15]}  Rxg2 {[%clk 0:00:08]} 34. h5 {[%clk 0:00:16]}  Rc8 {[%clk 0:00:06]} 35. hxg6 {[%clk 0:00:16]}  fxg6 {[%clk 0:00:07]} 36. f5 {[%clk 0:00:16]}  exf5 {[%clk 0:00:07]} 37. Be5 {[%clk 0:00:16]}  Re2 {[%clk 0:00:04]} 38. Bf4 {[%clk 0:00:16]}  d4 {[%clk 0:00:04]} 39. a5 {[%clk 0:00:15]}  bxa5 {[%clk 0:00:04]} 40. g4 {[%clk 0:00:15]}  d3 {[%clk 0:00:05]} 41. g5 {[%clk 0:00:15]}  d2 {[%clk 0:00:05]} 42. Rd1 {[%clk 0:00:15]}  Bc4+ {[%clk 0:00:04]} 43. Ka4 {[%clk 0:00:15]}  Rb8 {[%clk 0:00:04]} 44. Kxa5 {[%clk 0:00:14]}  Bb3 {[%clk 0:00:04]} 45. Rxd2 {[%clk 0:00:14]}  Rxd2 {[%clk 0:00:05]} 46. Bxd2 {[%clk 0:00:14]}  Bd5 {[%clk 0:00:05]} 47. Bf4 {[%clk 0:00:15]}  Re8 {[%clk 0:00:05]} 48. Kb5 {[%clk 0:00:15]}  Re4 {[%clk 0:00:06]} 49. Bd6 {[%clk 0:00:15]}  Rg4 {[%clk 0:00:07]} 50. Kc5 {[%clk 0:00:15]}  Rxg5 {[%clk 0:00:07]} 51. Kxd5 {[%clk 0:00:15]}  a5 {[%clk 0:00:08]} 52. Ke5 {[%clk 0:00:16]}  a4 {[%clk 0:00:08]} 53. Kf4 {[%clk 0:00:14]}  Rg4+ {[%clk 0:00:08]} 54. Ke5 {[%clk 0:00:13]}  Re4+ {[%clk 0:00:09]} 55. Kf6 {[%clk 0:00:13]}  h5 {[%clk 0:00:09]} 56. Kg5 {[%clk 0:00:13]}  Rg4+ {[%clk 0:00:09]} 57. Kh6 {[%clk 0:00:12]}  h4 {[%clk 0:00:10]} 58. Be5 {[%clk 0:00:12]}  h3 {[%clk 0:00:10]} 59. Bh2 {[%clk 0:00:12]}  a3 {[%clk 0:00:10]} 60. Be5 {[%clk 0:00:12]}  a2 {[%clk 0:00:11]} 61. Bd6 {[%clk 0:00:11]}  a1=Q {[%clk 0:00:11]} 62. Be5 {[%clk 0:00:12]}  Qc1+ {[%clk 0:00:11]} 63. Bf4 {[%clk 0:00:12]}  Qxf4# {[%clk 0:00:11]} 0-1


[Site "https://www.chess.com"]

[Event "Titled Tuesday Blitz March 21 Early 2023"]
[White "polandchessplayer"]
[Black "Eynullayev, Atilla"]
[BlackFideId "13413570"]
[WhiteElo "2641"]
[BlackElo "2181"]
[Result "0-1"]
[Round "09"]
[TimeControl "180+2"]
[Date "2023.03.21"]
[WhiteClock "0:00:02"]
[BlackClock "0:00:09"]

1. c4 {[%clk 0:03:00]}  e5 {[%clk 0:02:56]} 2. Nc3 {[%clk 0:02:58]}  Bb4 {[%clk 0:02:57]} 3. Nf3 {[%clk 0:02:58]}  Bxc3 {[%clk 0:02:56]} 4. dxc3 {[%clk 0:02:56]}  d6 {[%clk 0:02:56]} 5. e4 {[%clk 0:02:56]}  Nf6 {[%clk 0:02:52]} 6. Bd3 {[%clk 0:02:54]}  O-O {[%clk 0:02:50]} 7. O-O {[%clk 0:02:54]}  Nbd7 {[%clk 0:02:40]} 8. h3 {[%clk 0:02:53]}  Re8 {[%clk 0:02:41]} 9. Bg5 {[%clk 0:02:51]}  Nf8 {[%clk 0:02:40]} 10. Qe2 {[%clk 0:02:50]}  Ng6 {[%clk 0:02:41]} 11. Rad1 {[%clk 0:02:49]}  h6 {[%clk 0:02:41]} 12. Be3 {[%clk 0:02:49]}  Qe7 {[%clk 0:02:41]} 13. b4 {[%clk 0:02:47]}  Nh5 {[%clk 0:02:39]} 14. c5 {[%clk 0:02:36]}  Ngf4 {[%clk 0:02:14]} 15. Qd2 {[%clk 0:02:30]}  Qe6 {[%clk 0:01:29]} 16. Rfe1 {[%clk 0:02:01]}  Nxg2 {[%clk 0:01:20]} 17. Kxg2 {[%clk 0:01:47]}  Qxh3+ {[%clk 0:01:20]} 18. Kg1 {[%clk 0:01:48]}  Qxf3 {[%clk 0:01:20]} 19. Be2 {[%clk 0:01:45]}  Qh3 {[%clk 0:01:20]} 20. Bf1 {[%clk 0:01:37]}  Qh4 {[%clk 0:01:13]} 21. f3 {[%clk 0:01:23]}  Re6 {[%clk 0:01:13]} 22. Bg2 {[%clk 0:01:15]}  Rg6 {[%clk 0:01:11]} 23. Qf2 {[%clk 0:01:16]}  Qf6 {[%clk 0:00:44]} 24. Kf1 {[%clk 0:00:37]}  Ng3+ {[%clk 0:00:43]} 25. Kg1 {[%clk 0:00:37]}  h5 {[%clk 0:00:31]} 26. f4 {[%clk 0:00:25]}  Nxe4 {[%clk 0:00:21]} 27. Qf3 {[%clk 0:00:24]}  Nxc3 {[%clk 0:00:21]} 28. Rc1 {[%clk 0:00:17]}  e4 {[%clk 0:00:21]} 29. Qxh5 {[%clk 0:00:15]}  Bg4 {[%clk 0:00:18]} 30. Qh2 {[%clk 0:00:07]}  Ne2+ {[%clk 0:00:14]} 31. Rxe2 {[%clk 0:00:06]}  Bxe2 {[%clk 0:00:14]} 32. Kf2 {[%clk 0:00:07]}  Qb2 {[%clk 0:00:10]} 33. Rg1 {[%clk 0:00:02]}  Bf3+ {[%clk 0:00:09]} 34. Bd2 {[%clk 0:00:01]}  Qxd2+ {[%clk 0:00:09]} 35. Kf1 {[%clk 0:00:02]}  Qe2# {[%clk 0:00:09]} 0-1


[Site "https://www.chess.com"]

[Event "Titled Tuesday Blitz March 21 Early 2023"]
[White "Vlassov, Nikolai"]
[Black "Khamdamova, Afruza"]
[WhiteFideId "4103360"]
[BlackFideId "14210444"]
[WhiteElo "2324"]
[BlackElo "2210"]
[Result "0-1"]
[Round "09"]
[TimeControl "180+2"]
[Date "2023.03.21"]
[WhiteClock "0:01:17"]
[BlackClock "0:02:05"]

1. e4 {[%clk 0:03:00]}  e5 {[%clk 0:02:59]} 2. Bc4 {[%clk 0:03:00]}  Nf6 {[%clk 0:02:59]} 3. d3 {[%clk 0:03:00]}  Nc6 {[%clk 0:02:59]} 4. Nf3 {[%clk 0:02:59]}  Bc5 {[%clk 0:02:59]} 5. Bg5 {[%clk 0:02:59]}  d6 {[%clk 0:02:58]} 6. Nc3 {[%clk 0:02:58]}  h6 {[%clk 0:02:56]} 7. Bh4 {[%clk 0:02:58]}  Bg4 {[%clk 0:02:46]} 8. h3 {[%clk 0:02:56]}  Bh5 {[%clk 0:02:45]} 9. g4 {[%clk 0:02:51]}  g5 {[%clk 0:02:44]} 10. Nxg5 {[%clk 0:02:42]}  hxg5 {[%clk 0:02:40]} 11. Bxg5 {[%clk 0:02:41]}  Bxg4 {[%clk 0:02:20]} 12. Bxf6 {[%clk 0:01:57]}  Bxd1 {[%clk 0:02:20]} 13. Bxd8 {[%clk 0:01:57]}  Bf3 {[%clk 0:02:20]} 14. Rh2 {[%clk 0:01:39]}  Rxd8 {[%clk 0:02:17]} 15. Nd5 {[%clk 0:01:37]}  Kd7 {[%clk 0:02:16]} 16. Kd2 {[%clk 0:01:30]}  Kc8 {[%clk 0:02:13]} 17. Rg1 {[%clk 0:01:27]}  Rdg8 {[%clk 0:02:10]} 18. Rg3 {[%clk 0:01:17]}  Rxg3 {[%clk 0:02:05]} 19. fxg3 {[%clk 0:01:17]}  Bg1 {[%clk 0:02:05]} 0-1


[Site "https://www.chess.com"]

[Event "Titled Tuesday Blitz March 21 Early 2023"]
[White "Donskov, Anatoly"]
[Black "Al-Tarboush, Ward"]
[WhiteFideId "24143413"]
[BlackFideId "7601450"]
[WhiteElo "2247"]
[BlackElo "2257"]
[Result "0-1"]
[Round "09"]
[TimeControl "180+2"]
[Date "2023.03.21"]
[WhiteClock "0:00:19"]
[BlackClock "0:01:14"]

1. e4 {[%clk 0:03:00]}  e6 {[%clk 0:02:52]} 2. d3 {[%clk 0:03:00]}  d5 {[%clk 0:02:52]} 3. Nd2 {[%clk 0:03:00]}  Nf6 {[%clk 0:02:52]} 4. g3 {[%clk 0:03:00]}  b6 {[%clk 0:02:51]} 5. Bg2 {[%clk 0:03:00]}  Bb7 {[%clk 0:02:51]} 6. e5 {[%clk 0:02:54]}  Nfd7 {[%clk 0:02:51]} 7. d4 {[%clk 0:02:55]}  c5 {[%clk 0:02:51]} 8. c3 {[%clk 0:02:55]}  Nc6 {[%clk 0:02:50]} 9. Ne2 {[%clk 0:02:52]}  Be7 {[%clk 0:02:46]} 10. O-O {[%clk 0:02:52]}  Qc7 {[%clk 0:02:43]} 11. a3 {[%clk 0:02:51]}  h5 {[%clk 0:02:31]} 12. h3 {[%clk 0:02:40]}  g5 {[%clk 0:02:29]} 13. f4 {[%clk 0:02:13]}  gxf4 {[%clk 0:02:27]} 14. Rxf4 {[%clk 0:02:10]}  Bg5 {[%clk 0:02:22]} 15. Rf2 {[%clk 0:02:04]}  Be3 {[%clk 0:02:22]} 16. Nf1 {[%clk 0:01:43]}  Bxf2+ {[%clk 0:02:20]} 17. Kxf2 {[%clk 0:01:43]}  O-O-O {[%clk 0:02:19]} 18. Bf4 {[%clk 0:01:43]}  Ba6 {[%clk 0:02:13]} 19. Ne3 {[%clk 0:01:42]}  h4 {[%clk 0:02:11]} 20. g4 {[%clk 0:01:42]}  Bxe2 {[%clk 0:02:11]} 21. Kxe2 {[%clk 0:01:41]}  f6 {[%clk 0:02:10]} 22. Bxd5 {[%clk 0:01:01]}  exd5 {[%clk 0:02:08]} 23. Nxd5 {[%clk 0:01:01]}  Qb7 {[%clk 0:02:09]} 24. exf6 {[%clk 0:00:44]}  Nxf6 {[%clk 0:02:02]} 25. Nxf6 {[%clk 0:00:40]}  Qe7+ {[%clk 0:02:02]} 26. Kf3 {[%clk 0:00:29]}  Qxf6 {[%clk 0:02:02]} 27. Qa4 {[%clk 0:00:30]}  Kb7 {[%clk 0:01:47]} 28. Re1 {[%clk 0:00:29]}  Rhf8 {[%clk 0:01:46]} 29. dxc5 {[%clk 0:00:28]}  Rd3+ {[%clk 0:01:37]} 30. Ke2 {[%clk 0:00:22]}  Rxh3 {[%clk 0:01:28]} 31. cxb6 {[%clk 0:00:19]}  Qxf4 {[%clk 0:01:14]} 0-1


[Site "https://www.chess.com"]

[Event "Titled Tuesday Blitz March 21 Early 2023"]
[White "Sreyas Payyappat"]
[Black "Filgueira, Hernan"]
[WhiteFideId "46674969"]
[BlackFideId "101770"]
[WhiteElo "2083"]
[BlackElo "2363"]
[Result "1-0"]
[Round "09"]
[TimeControl "180+2"]
[Date "2023.03.21"]
[WhiteClock "0:01:30"]
[BlackClock "0:00:54"]

1. e4 {[%clk 0:03:00]}  g6 {[%clk 0:02:59]} 2. d4 {[%clk 0:02:57]}  Bg7 {[%clk 0:02:59]} 3. Nc3 {[%clk 0:02:58]}  d6 {[%clk 0:03:00]} 4. Be3 {[%clk 0:02:57]}  c6 {[%clk 0:03:00]} 5. Qd2 {[%clk 0:02:57]}  b5 {[%clk 0:03:01]} 6. Bd3 {[%clk 0:02:55]}  Nd7 {[%clk 0:03:00]} 7. Nf3 {[%clk 0:02:55]}  Qc7 {[%clk 0:02:59]} 8. h4 {[%clk 0:02:54]}  h6 {[%clk 0:02:58]} 9. O-O-O {[%clk 0:02:50]}  b4 {[%clk 0:02:51]} 10. Ne2 {[%clk 0:02:50]}  a5 {[%clk 0:02:52]} 11. Nf4 {[%clk 0:02:47]}  Ngf6 {[%clk 0:02:46]} 12. Rde1 {[%clk 0:02:32]}  e5 {[%clk 0:02:31]} 13. Ne2 {[%clk 0:02:28]}  h5 {[%clk 0:02:09]} 14. dxe5 {[%clk 0:02:24]}  dxe5 {[%clk 0:02:07]} 15. Reg1 {[%clk 0:02:13]}  c5 {[%clk 0:02:03]} 16. Bc4 {[%clk 0:02:09]}  Bb7 {[%clk 0:02:02]} 17. Ng5 {[%clk 0:02:06]}  O-O {[%clk 0:01:58]} 18. f3 {[%clk 0:02:02]}  Nb6 {[%clk 0:01:58]} 19. b3 {[%clk 0:01:51]}  Nxc4 {[%clk 0:01:55]} 20. bxc4 {[%clk 0:01:52]}  Rad8 {[%clk 0:01:42]} 21. Qe1 {[%clk 0:01:51]}  Ba6 {[%clk 0:01:40]} 22. g4 {[%clk 0:01:50]}  Bxc4 {[%clk 0:01:33]} 23. gxh5 {[%clk 0:01:50]}  Nxh5 {[%clk 0:01:33]} 24. Ng3 {[%clk 0:01:49]}  Nf4 {[%clk 0:01:31]} 25. h5 {[%clk 0:01:46]}  Qe7 {[%clk 0:01:20]} 26. h6 {[%clk 0:01:35]}  Qxg5 {[%clk 0:01:18]} 27. hxg7 {[%clk 0:01:34]}  Rfe8 {[%clk 0:01:00]} 28. Nf5 {[%clk 0:01:31]}  Qxg1 {[%clk 0:00:54]} 29. Rh8# {[%clk 0:01:30]} 1-0


[Site "https://www.chess.com"]

[Event "Titled Tuesday Blitz March 21 Early 2023"]
[White "Alex_Sahakyan2006"]
[Black "Dudzinski, Pawel"]
[BlackFideId "1117890"]
[WhiteElo "2611"]
[BlackElo "2099"]
[Result "1-0"]
[Round "09"]
[TimeControl "180+2"]
[Date "2023.03.21"]
[WhiteClock "0:01:25"]
[BlackClock "0:00:14"]

1. e4 {[%clk 0:03:00]}  c6 {[%clk 0:01:22]} 2. Nc3 {[%clk 0:02:58]}  d5 {[%clk 0:01:23]} 3. Nf3 {[%clk 0:02:56]}  dxe4 {[%clk 0:01:23]} 4. Nxe4 {[%clk 0:02:57]}  Nf6 {[%clk 0:01:23]} 5. Qe2 {[%clk 0:02:57]}  Nxe4 {[%clk 0:01:23]} 6. Qxe4 {[%clk 0:02:58]}  Qa5 {[%clk 0:01:23]} 7. Bc4 {[%clk 0:02:54]}  Bf5 {[%clk 0:01:24]} 8. Qf4 {[%clk 0:02:54]}  e6 {[%clk 0:01:24]} 9. O-O {[%clk 0:02:49]}  Be7 {[%clk 0:01:25]} 10. c3 {[%clk 0:02:47]}  O-O {[%clk 0:01:25]} 11. d4 {[%clk 0:02:46]}  Qd8 {[%clk 0:01:25]} 12. Qg3 {[%clk 0:02:46]}  Nd7 {[%clk 0:01:26]} 13. a4 {[%clk 0:02:36]}  Nb6 {[%clk 0:01:26]} 14. Bb3 {[%clk 0:02:34]}  Nd5 {[%clk 0:01:26]} 15. a5 {[%clk 0:02:30]}  Bd6 {[%clk 0:01:26]} 16. Qh4 {[%clk 0:02:30]}  Qxh4 {[%clk 0:01:22]} 17. Nxh4 {[%clk 0:02:31]}  Bd3 {[%clk 0:01:11]} 18. Rd1 {[%clk 0:02:30]}  Be2 {[%clk 0:01:02]} 19. Re1 {[%clk 0:02:30]}  Bd3 {[%clk 0:01:01]} 20. Nf3 {[%clk 0:02:26]}  a6 {[%clk 0:00:50]} 21. Ne5 {[%clk 0:02:24]}  Bg6 {[%clk 0:00:41]} 22. Nxg6 {[%clk 0:02:17]}  hxg6 {[%clk 0:00:42]} 23. g3 {[%clk 0:02:15]}  Rfe8 {[%clk 0:00:41]} 24. f4 {[%clk 0:02:10]}  c5 {[%clk 0:00:41]} 25. dxc5 {[%clk 0:02:08]}  Bxc5+ {[%clk 0:00:41]} 26. Kg2 {[%clk 0:02:08]}  Red8 {[%clk 0:00:34]} 27. Bd1 {[%clk 0:02:01]}  Rd7 {[%clk 0:00:28]} 28. Bf3 {[%clk 0:01:59]}  Rad8 {[%clk 0:00:28]} 29. Re2 {[%clk 0:01:48]}  Kf8 {[%clk 0:00:26]} 30. Bd2 {[%clk 0:01:41]}  Ke7 {[%clk 0:00:20]} 31. Rae1 {[%clk 0:01:36]}  Kd6 {[%clk 0:00:20]} 32. b4 {[%clk 0:01:34]}  Ba7 {[%clk 0:00:19]} 33. c4 {[%clk 0:01:35]}  Nf6 {[%clk 0:00:19]} 34. Bc3 {[%clk 0:01:33]}  Kc7 {[%clk 0:00:19]} 35. Be5+ {[%clk 0:01:33]}  Kc8 {[%clk 0:00:19]} 36. b5 {[%clk 0:01:33]}  Bb8 {[%clk 0:00:19]} 37. bxa6 {[%clk 0:01:23]}  bxa6 {[%clk 0:00:18]} 38. Rb1 {[%clk 0:01:24]}  Rb7 {[%clk 0:00:16]} 39. Bxb7+ {[%clk 0:01:23]}  Kd7 {[%clk 0:00:14]} 40. Rd2+ {[%clk 0:01:24]}  Ke7 {[%clk 0:00:14]} 41. Rxd8 {[%clk 0:01:24]}  Kxd8 {[%clk 0:00:14]} 42. Bxb8 {[%clk 0:01:25]} 1-0


[Site "https://www.chess.com"]

[Event "Titled Tuesday Blitz March 21 Early 2023"]
[White "Pinheiro, Iung Alicio de O."]
[Black "Khandelwal, Ankush"]
[WhiteFideId "2104350"]
[BlackFideId "413470"]
[WhiteElo "2283"]
[BlackElo "2263"]
[Result "1-0"]
[Round "09"]
[TimeControl "180+2"]
[Date "2023.03.21"]
[WhiteClock "0:00:08"]
[BlackClock "0:00:24"]

1. d4 {[%clk 0:03:00]}  Nf6 {[%clk 0:02:59]} 2. c4 {[%clk 0:02:59]}  g6 {[%clk 0:02:57]} 3. Nc3 {[%clk 0:02:58]}  Bg7 {[%clk 0:02:56]} 4. e4 {[%clk 0:02:58]}  d6 {[%clk 0:02:55]} 5. h3 {[%clk 0:02:57]}  Nbd7 {[%clk 0:02:37]} 6. Be3 {[%clk 0:02:41]}  e5 {[%clk 0:02:33]} 7. d5 {[%clk 0:02:24]}  Nc5 {[%clk 0:02:08]} 8. Qc2 {[%clk 0:02:06]}  a5 {[%clk 0:02:02]} 9. g4 {[%clk 0:02:03]}  h5 {[%clk 0:01:53]} 10. g5 {[%clk 0:01:57]}  Nfd7 {[%clk 0:01:53]} 11. h4 {[%clk 0:01:49]}  Nb6 {[%clk 0:01:46]} 12. b3 {[%clk 0:01:43]}  f5 {[%clk 0:01:33]} 13. gxf6 {[%clk 0:01:23]}  Bf5 {[%clk 0:01:34]} 14. exf5 {[%clk 0:01:23]}  Qxf6 {[%clk 0:01:29]} 15. Bxc5 {[%clk 0:01:03]}  dxc5 {[%clk 0:01:30]} 16. Ne4 {[%clk 0:00:58]}  Qxf5 {[%clk 0:01:29]} 17. Bd3 {[%clk 0:00:54]}  O-O {[%clk 0:01:24]} 18. Ne2 {[%clk 0:00:48]}  a4 {[%clk 0:01:17]} 19. O-O-O {[%clk 0:00:34]}  axb3 {[%clk 0:01:16]} 20. axb3 {[%clk 0:00:34]}  Ra3 {[%clk 0:01:13]} 21. N2c3 {[%clk 0:00:21]}  Rfa8 {[%clk 0:01:08]} 22. Kb2 {[%clk 0:00:22]}  c6 {[%clk 0:01:02]} 23. d6 {[%clk 0:00:20]}  Nc8 {[%clk 0:00:53]} 24. Rhg1 {[%clk 0:00:19]}  Nxd6 {[%clk 0:00:45]} 25. Nxd6 {[%clk 0:00:18]}  e4 {[%clk 0:00:45]} 26. Nxf5 {[%clk 0:00:14]}  Ra2+ {[%clk 0:00:45]} 27. Kc1 {[%clk 0:00:14]}  Rxc2+ {[%clk 0:00:40]} 28. Kxc2 {[%clk 0:00:13]}  gxf5 {[%clk 0:00:41]} 29. Bxe4 {[%clk 0:00:11]}  fxe4 {[%clk 0:00:41]} 30. Nxe4 {[%clk 0:00:12]}  Ra2+ {[%clk 0:00:41]} 31. Kd3 {[%clk 0:00:13]}  Kf7 {[%clk 0:00:39]} 32. Rg5 {[%clk 0:00:12]}  Rb2 {[%clk 0:00:38]} 33. Rdg1 {[%clk 0:00:11]}  Rxb3+ {[%clk 0:00:38]} 34. Kc2 {[%clk 0:00:11]}  Rb2+ {[%clk 0:00:38]} 35. Kc1 {[%clk 0:00:11]}  Bd4 {[%clk 0:00:38]} 36. Rg7+ {[%clk 0:00:08]}  Ke6 {[%clk 0:00:38]} 37. R1g6+ {[%clk 0:00:07]}  Kf5 {[%clk 0:00:38]} 38. Nd2 {[%clk 0:00:08]}  Ra2 {[%clk 0:00:36]} 39. Rg5+ {[%clk 0:00:07]}  Kf6 {[%clk 0:00:28]} 40. Ne4+ {[%clk 0:00:06]}  Ke6 {[%clk 0:00:27]} 41. f4 {[%clk 0:00:07]}  b5 {[%clk 0:00:25]} 42. R7g6+ {[%clk 0:00:06]}  Kf7 {[%clk 0:00:24]} 43. Nd6+ {[%clk 0:00:05]}  Ke7 {[%clk 0:00:23]} 44. Nf5+ {[%clk 0:00:06]}  Kd7 {[%clk 0:00:23]} 45. Nxd4 {[%clk 0:00:07]}  cxd4 {[%clk 0:00:23]} 46. cxb5 {[%clk 0:00:07]}  cxb5 {[%clk 0:00:23]} 47. Rd5+ {[%clk 0:00:08]}  Ke7 {[%clk 0:00:23]} 48. Rxd4 {[%clk 0:00:08]}  Ra1+ {[%clk 0:00:23]} 49. Kb2 {[%clk 0:00:08]}  Rh1 {[%clk 0:00:24]} 50. Rg5 {[%clk 0:00:05]}  Rxh4 {[%clk 0:00:24]} 51. Rxb5 {[%clk 0:00:05]}  Rh2+ {[%clk 0:00:24]} 52. Kc3 {[%clk 0:00:05]}  h4 {[%clk 0:00:25]} 53. Ra4 {[%clk 0:00:05]}  Kd7 {[%clk 0:00:23]} 54. Ra6 {[%clk 0:00:05]}  Kc7 {[%clk 0:00:23]} 55. Rh5 {[%clk 0:00:05]}  Rh3+ {[%clk 0:00:23]} 56. Kd4 {[%clk 0:00:05]}  Rh1 {[%clk 0:00:23]} 57. Ra7+ {[%clk 0:00:05]}  Kb6 {[%clk 0:00:23]} 58. Rg7 {[%clk 0:00:06]}  h3 {[%clk 0:00:23]} 59. Rg6+ {[%clk 0:00:06]}  Kc7 {[%clk 0:00:24]} 60. Rh7+ {[%clk 0:00:07]}  Kd8 {[%clk 0:00:24]} 61. Rg8# {[%clk 0:00:08]} 1-0


[Site "https://www.chess.com"]